[Event "Live Chess"]
[Site "Chess.com"]
[Date "2024.06.01"]
[Round "-"]
[White "nigelst"]
[Black "jimwad"]
[Result "1-0"]
[WhiteElo "1700"]
[BlackElo "1306"]
[TimeControl "300"]
[EndTime "15:59:57 PDT"]
[Termination "nigelst won on time"]

1. e4 {[%clk 0:04:57]} 1... e5 {[%clk 0:04:58.9]} 2. Nf3 {[%clk 0:04:55.7]} 2...
Nc6 {[%clk 0:04:57.7]} 3. Bb5 {[%clk 0:04:54.2]} 3... Nf6 {[%clk 0:04:55.6]} 4.
O-O {[%clk 0:04:51.5]} 4... Bd6 {[%clk 0:04:48.5]} 5. Re1 {[%clk 0:04:43.3]}
5... O-O {[%clk 0:04:46.5]} 6. d4 {[%clk 0:04:38.6]} 6... Nxd4 {[%clk
0:04:38.3]} 7. Nxd4 {[%clk 0:04:34.6]} 7... exd4 {[%clk 0:04:36.8]} 8. e5 {[%clk
0:04:33.3]} 8... Bb4 {[%clk 0:04:24.7]} 9. c3 {[%clk 0:04:29.3]} 9... dxc3
{[%clk 0:04:21.7]} 10. Nxc3 {[%clk 0:04:26.9]} 10... Ne8 {[%clk 0:04:13]} 11.
Qg4 {[%clk 0:04:13.8]} 11... Bxc3 {[%clk 0:04:06.5]} 12. bxc3 {[%clk 0:04:11.5]}
12... c6 {[%clk 0:04:04.7]} 13. Bd3 {[%clk 0:04:09.1]} 13... d5 {[%clk
0:03:58.9]} 14. Qh5 {[%clk 0:04:04.5]} 14... g6 {[%clk 0:03:46.2]} 15. Qe2
{[%clk 0:04:02.4]} 15... Ng7 {[%clk 0:03:41.2]} 16. f4 {[%clk 0:03:54.6]} 16...
Bf5 {[%clk 0:03:39.2]} 17. g4 {[%clk 0:03:48.6]} 17... Bxd3 {[%clk 0:03:36.8]}
18. Qxd3 {[%clk 0:03:47.1]} 18... Qh4 {[%clk 0:03:30.8]} 19. Qe2 {[%clk
0:03:42.4]} 19... Rae8 {[%clk 0:03:20.8]} 20. Be3 {[%clk 0:03:40.8]} 20... a6
{[%clk 0:03:03.4]} 21. Qf3 {[%clk 0:03:38.2]} 21... Ne6 {[%clk 0:02:51]} 22. Bf2
{[%clk 0:03:36.4]} 22... Qh6 {[%clk 0:02:44.1]} 23. Bg3 {[%clk 0:03:32.6]} 23...
Nc5 {[%clk 0:02:28.6]} 24. f5 {[%clk 0:03:28.8]} 24... Ne4 {[%clk 0:02:18.8]}
25. c4 {[%clk 0:03:15.9]} 25... Nxg3 {[%clk 0:02:16.3]} 26. Qxg3 {[%clk
0:03:11.7]} 26... Qd2 {[%clk 0:01:49.6]} 27. Rad1 {[%clk 0:03:05.6]} 27... Qxa2
{[%clk 0:01:46.2]} 28. cxd5 {[%clk 0:03:04.3]} 28... cxd5 {[%clk 0:01:44.1]} 29.
f6 {[%clk 0:03:00.9]} 29... Qa5 {[%clk 0:01:25.4]} 30. Qf4 {[%clk 0:02:58.6]}
30... Qb6+ {[%clk 0:01:21.2]} 31. Kh1 {[%clk 0:02:52.9]} 31... Re6 {[%clk
0:01:14.1]} 32. Qh6 {[%clk 0:02:50.6]} 32... Rxf6 {[%clk 0:01:09]} 33. exf6
{[%clk 0:02:48.9]} 33... Qxf6 {[%clk 0:01:07.7]} 34. Rf1 {[%clk 0:02:46.7]}
34... Qc6 {[%clk 0:01:02.5]} 35. Kg1 {[%clk 0:02:43.7]} 35... Qb6+ {[%clk
0:00:59.8]} 36. Kg2 {[%clk 0:02:42.1]} 36... Qb2+ {[%clk 0:00:57.4]} 37. Qd2
{[%clk 0:02:40.8]} 37... Qe5 {[%clk 0:00:50.7]} 38. Qxd5 {[%clk 0:02:36.2]}
38... Qb2+ {[%clk 0:00:48.7]} 39. Rd2 {[%clk 0:02:34.1]} 39... Qb6 {[%clk
0:00:39.4]} 40. Rdf2 {[%clk 0:02:32.3]} 40... Qc7 {[%clk 0:00:36.1]} 41. h4
{[%clk 0:02:22.5]} 41... Qe7 {[%clk 0:00:25.3]} 42. h5 {[%clk 0:02:20]} 42...
Qh4 {[%clk 0:00:20.8]} 43. Qf3 {[%clk 0:02:14.3]} 43... Qe7 {[%clk 0:00:18.9]}
44. h6 {[%clk 0:02:09.9]} 44... b5 {[%clk 0:00:14.1]} 45. Qc3 {[%clk 0:02:05.6]}
45... Qb7+ {[%clk 0:00:10.3]} 46. Rf3 {[%clk 0:02:04.1]} 46... f6 {[%clk
0:00:07.8]} 47. Kh3 {[%clk 0:01:57.6]} 47... Rf7 {[%clk 0:00:05.5]} 48. Rxf6
{[%clk 0:01:55]} 48... Rxf6 {[%clk 0:00:04.2]} 49. Qxf6 {[%clk 0:01:53.9]} 1-0

[Event "Live Chess"]
[Site "Chess.com"]
[Date "2024.06.01"]
[Round "-"]
[White "RapidMaster109"]
[Black "GEMdzq"]
[Result "0-1"]
[WhiteElo "1141"]
[BlackElo "2290"]
[TimeControl "300"]
[EndTime "15:59:58 PDT"]
[Termination "GEMdzq won by resignation"]

1. e4 {[%clk 0:04:59.2]} 1... Nf6 {[%clk 0:04:57.2]} 2. Nc3 {[%clk 0:04:57]}
2... d6 {[%clk 0:04:52.7]} 3. d4 {[%clk 0:04:55.9]} 3... g6 {[%clk 0:04:52.2]}
4. Bd3 {[%clk 0:04:54.8]} 4... Bg7 {[%clk 0:04:51.6]} 5. Be3 {[%clk 0:04:53.7]}
5... O-O {[%clk 0:04:50.9]} 6. Nf3 {[%clk 0:04:52.9]} 6... Nfd7 {[%clk
0:04:44.1]} 7. O-O {[%clk 0:04:51.1]} 7... c5 {[%clk 0:04:43.7]} 8. Ne2 {[%clk
0:04:46.4]} 8... Nc6 {[%clk 0:04:40.4]} 9. c3 {[%clk 0:04:45.1]} 9... b6 {[%clk
0:04:36.4]} 10. Bb5 {[%clk 0:04:42.9]} 10... Bb7 {[%clk 0:04:33.5]} 11. d5
{[%clk 0:04:40.7]} 11... Nce5 {[%clk 0:04:32.3]} 12. Nxe5 {[%clk 0:04:39.2]}
12... Nxe5 {[%clk 0:04:32.2]} 13. f4 {[%clk 0:04:36.6]} 13... Ng4 {[%clk
0:04:30.5]} 14. Bf2 {[%clk 0:04:32.9]} 14... Nxf2 {[%clk 0:04:28.3]} 15. Rxf2
{[%clk 0:04:31.7]} 15... a6 {[%clk 0:04:28.2]} 16. Bd3 {[%clk 0:04:28.6]} 16...
b5 {[%clk 0:04:28.1]} 17. c4 {[%clk 0:04:26.9]} 17... e6 {[%clk 0:04:25.7]} 18.
b3 {[%clk 0:04:24.2]} 18... Bxa1 {[%clk 0:04:23.4]} 0-1

[Event "Live Chess"]
[Site "Chess.com"]
[Date "2024.06.02"]
[Round "-"]
[White "vincents82"]
[Black "koekoekoe"]
[Result "1-0"]
[WhiteElo "2046"]
[BlackElo "1966"]
[TimeControl "300"]
[EndTime "16:00:17 PDT"]
[Termination "vincents82 won by resignation"]

1. e4 {[%clk 0:04:54.6]} 1... d5 {[%clk 0:04:59.9]} 2. exd5 {[%clk 0:04:53.4]}
2... Qxd5 {[%clk 0:04:59.8]} 3. Nc3 {[%clk 0:04:52.8]} 3... Qa5 {[%clk
0:04:59.3]} 4. d4 {[%clk 0:04:52]} 4... Nf6 {[%clk 0:04:58.8]} 5. Bc4 {[%clk
0:04:51.5]} 5... Bg4 {[%clk 0:04:56.5]} 6. Ne2 {[%clk 0:04:49.1]} 6... e6 {[%clk
0:04:55.8]} 7. Bd2 {[%clk 0:04:48.5]} 7... c6 {[%clk 0:04:54.5]} 8. Nd5 {[%clk
0:04:47.7]} 8... Qd8 {[%clk 0:04:52]} 9. Nxf6+ {[%clk 0:04:46.9]} 9... Qxf6
{[%clk 0:04:51.9]} 10. c3 {[%clk 0:04:46]} 10... Nd7 {[%clk 0:04:48.9]} 11. f3
{[%clk 0:04:45.4]} 11... Bh5 {[%clk 0:04:45.9]} 12. Qb3 {[%clk 0:04:44]} 12...
Nb6 {[%clk 0:04:37.3]} 13. Bd3 {[%clk 0:04:40.6]} 13... Bd6 {[%clk 0:04:20]} 14.
Ng3 {[%clk 0:04:38.7]} 14... Bxg3+ {[%clk 0:04:16.9]} 15. hxg3 {[%clk
0:04:37.8]} 15... Bg6 {[%clk 0:04:16.4]} 16. Bxg6 {[%clk 0:04:34.9]} 16... Qxg6
{[%clk 0:04:15.6]} 17. O-O-O {[%clk 0:04:33.4]} 17... Qxg3 {[%clk 0:04:13.2]}
18. c4 {[%clk 0:04:22.1]} 18... O-O-O {[%clk 0:04:09.4]} 19. Bc3 {[%clk
0:04:16]} 19... Qxg2 {[%clk 0:03:53.9]} 20. Rhg1 {[%clk 0:04:14.5]} 20... Qxf3
{[%clk 0:03:53.1]} 21. Rxg7 {[%clk 0:04:13.1]} 21... Rdg8 {[%clk 0:03:47.4]} 22.
Rxg8+ {[%clk 0:04:10.8]} 22... Rxg8 {[%clk 0:03:47.3]} 23. Ba5 {[%clk
0:04:05.7]} 23... Qxb3 {[%clk 0:03:39.3]} 24. axb3 {[%clk 0:04:04.5]} 24... h5
{[%clk 0:03:24.9]} 25. Bxb6 {[%clk 0:04:02.5]} 25... axb6 {[%clk 0:03:23.8]} 26.
Rh1 {[%clk 0:04:01.6]} 26... Rh8 {[%clk 0:03:19.7]} 27. Kd2 {[%clk 0:04:00.6]}
27... Kd7 {[%clk 0:03:16.9]} 28. Ke3 {[%clk 0:03:59.5]} 28... f6 {[%clk
0:03:11.3]} 29. Kf4 {[%clk 0:03:58.7]} 29... Kd6 {[%clk 0:03:09]} 30. Rh4 {[%clk
0:03:57.6]} 30... b5 {[%clk 0:03:07.9]} 31. Ke4 {[%clk 0:03:55.3]} 31... bxc4
{[%clk 0:02:58.5]} 32. bxc4 {[%clk 0:03:54.4]} 32... b5 {[%clk 0:02:57.1]} 33.
b3 {[%clk 0:03:52.5]} 33... bxc4 {[%clk 0:02:55.8]} 34. bxc4 {[%clk 0:03:51.7]}
34... f5+ {[%clk 0:02:54.1]} 35. Kf4 {[%clk 0:03:50.5]} 35... c5 {[%clk
0:02:44.9]} 36. dxc5+ {[%clk 0:03:49.3]} 36... Kxc5 {[%clk 0:02:44.8]} 37. Ke5
{[%clk 0:03:48.7]} 37... Rh6 {[%clk 0:02:43.2]} 38. Kf4 {[%clk 0:03:35.3]} 38...
Kxc4 {[%clk 0:02:41.6]} 39. Kg5+ {[%clk 0:03:32]} 39... Kd3 {[%clk 0:02:29.9]}
40. Kxh6 {[%clk 0:03:31.3]} 40... Ke3 {[%clk 0:02:28.7]} 41. Kxh5 {[%clk
0:03:28.3]} 41... f4 {[%clk 0:02:27.5]} 42. Kg4 {[%clk 0:03:27.4]} 42... e5
{[%clk 0:02:23.6]} 43. Rh3+ {[%clk 0:03:26.2]} 43... Kd4 {[%clk 0:02:20.2]} 44.
Kf3 {[%clk 0:03:14.2]} 44... Kd3 {[%clk 0:02:18.4]} 45. Rh5 {[%clk 0:03:10.3]}
45... Kd4 {[%clk 0:02:17.1]} 46. Rg5 {[%clk 0:03:06.4]} 46... Kd5 {[%clk
0:02:15.5]} 47. Rg1 {[%clk 0:03:00]} 47... Ke6 {[%clk 0:02:13.7]} 48. Ke4 {[%clk
0:02:58.9]} 48... Kf6 {[%clk 0:02:12.6]} 49. Rg2 {[%clk 0:02:55.6]} 49... Ke6
{[%clk 0:02:11.6]} 50. Rg6+ {[%clk 0:02:54.8]} 50... Kf7 {[%clk 0:02:11.1]} 51.
Rg5 {[%clk 0:02:53]} 51... Kf6 {[%clk 0:02:10.3]} 52. Rf5+ {[%clk 0:02:51.7]}
52... Ke6 {[%clk 0:02:09.4]} 53. Rxe5+ {[%clk 0:02:51]} 1-0

[Event "Live Chess"]
[Site "Chess.com"]
[Date "2024.06.02"]
[Round "-"]
[White "WelshTiger"]
[Black "Queensandpawns"]
[Result "1-0"]
[WhiteElo "2483"]
[BlackElo "2317"]
[TimeControl "300"]
[EndTime "16:00:21 PDT"]
[Termination "WelshTiger won by resignation"]

1. e4 {[%clk 0:04:53.9]} 1... e5 {[%clk 0:04:59.9]} 2. Nf3 {[%clk 0:04:52.5]}
2... Nf6 {[%clk 0:04:59.8]} 3. Nc3 {[%clk 0:04:51.2]} 3... Nc6 {[%clk
0:04:59.7]} 4. d4 {[%clk 0:04:50.4]} 4... exd4 {[%clk 0:04:58.2]} 5. Nxd4 {[%clk
0:04:50.3]} 5... Bb4 {[%clk 0:04:57.5]} 6. Nxc6 {[%clk 0:04:49.2]} 6... bxc6
{[%clk 0:04:57.4]} 7. Bd3 {[%clk 0:04:48.4]} 7... d5 {[%clk 0:04:56.6]} 8. exd5
{[%clk 0:04:47.8]} 8... cxd5 {[%clk 0:04:55.8]} 9. O-O {[%clk 0:04:46.9]} 9...
O-O {[%clk 0:04:55.4]} 10. h3 {[%clk 0:04:45.9]} 10... Be6 {[%clk 0:04:54.9]}
11. Qf3 {[%clk 0:04:41.5]} 11... Qd7 {[%clk 0:04:52.9]} 12. Bg5 {[%clk
0:04:37.1]} 12... Be7 {[%clk 0:04:51]} 13. Rad1 {[%clk 0:04:33.8]} 13... h6
{[%clk 0:04:43.4]} 14. Bf4 {[%clk 0:04:28.3]} 14... Rab8 {[%clk 0:04:42.3]} 15.
b3 {[%clk 0:04:25.6]} 15... Bd6 {[%clk 0:04:38.5]} 16. Ne2 {[%clk 0:04:23]}
16... Qc6 {[%clk 0:04:34]} 17. c4 {[%clk 0:04:17.5]} 17... Bxf4 {[%clk
0:04:30.8]} 18. Nxf4 {[%clk 0:04:16.1]} 18... Qd6 {[%clk 0:04:22.4]} 19. cxd5
{[%clk 0:04:11.8]} 19... Bd7 {[%clk 0:04:21.7]} 20. Bc4 {[%clk 0:04:01.6]} 20...
Rb4 {[%clk 0:04:11.9]} 21. Nd3 {[%clk 0:03:48.6]} 21... Rb6 {[%clk 0:04:07.6]}
22. Qf4 {[%clk 0:03:40.1]} 22... Qa3 {[%clk 0:03:52.4]} 23. Qxc7 {[%clk
0:03:31.8]} 23... Rc8 {[%clk 0:03:52]} 24. Qf4 {[%clk 0:03:22.5]} 24... Qxa2
{[%clk 0:03:42.3]} 25. Ne5 {[%clk 0:03:21.5]} 25... Qa3 {[%clk 0:03:38.7]} 26.
Nxd7 {[%clk 0:03:15.2]} 26... Nxd7 {[%clk 0:03:38.6]} 27. d6 {[%clk 0:03:14.8]}
27... Rcc6 {[%clk 0:03:33.4]} 28. Qxf7+ {[%clk 0:03:12.4]} 1-0

[Event "Live Chess"]
[Site "Chess.com"]
[Date "2024.06.02"]
[Round "-"]
[White "degringolade64"]
[Black "cymbalshift"]
[Result "0-1"]
[WhiteElo "2121"]
[BlackElo "1693"]
[TimeControl "300"]
[EndTime "16:00:23 PDT"]
[Termination "cymbalshift won by resignation"]

1. e4 {[%clk 0:04:57.3]} 1... e5 {[%clk 0:04:58.9]} 2. Nf3 {[%clk 0:04:56.3]}
2... Nc6 {[%clk 0:04:58.3]} 3. Bc4 {[%clk 0:04:55.4]} 3... Bc5 {[%clk
0:04:56.7]} 4. b4 {[%clk 0:04:54.1]} 4... Bxb4 {[%clk 0:04:54.3]} 5. c3 {[%clk
0:04:53.7]} 5... Be7 {[%clk 0:04:53.8]} 6. d4 {[%clk 0:04:52.5]} 6... Na5 {[%clk
0:04:52.4]} 7. Be2 {[%clk 0:04:48.8]} 7... Nf6 {[%clk 0:04:34]} 8. dxe5 {[%clk
0:04:33.5]} 8... Nxe4 {[%clk 0:04:32.6]} 9. Qa4 {[%clk 0:04:32.3]} 9... Nxf2
{[%clk 0:04:18.9]} 10. Kxf2 {[%clk 0:04:31]} 10... Bc5+ {[%clk 0:04:18]} 11. Be3
{[%clk 0:04:27]} 11... Bxe3+ {[%clk 0:04:15.6]} 12. Kxe3 {[%clk 0:04:26.9]}
12... c6 {[%clk 0:04:05.6]} 13. Rd1 {[%clk 0:04:20.3]} 13... O-O {[%clk
0:04:03.6]} 14. Kf2 {[%clk 0:04:18.6]} 14... Qb6+ {[%clk 0:04:01]} 15. Qd4
{[%clk 0:04:11.1]} 15... c5 {[%clk 0:03:53.6]} 16. Qg4 {[%clk 0:04:08.2]} 16...
d5 {[%clk 0:03:49.6]} 17. exd6 {[%clk 0:04:05.7]} 17... Bxg4 {[%clk 0:03:46.8]}
18. Nbd2 {[%clk 0:03:55.2]} 18... Qxd6 {[%clk 0:03:25.9]} 19. Ne4 {[%clk
0:03:53.3]} 19... Qg6 {[%clk 0:02:48.6]} 20. Bd3 {[%clk 0:03:34.7]} 20... c4
{[%clk 0:02:39.5]} 21. Bc2 {[%clk 0:03:28.3]} 21... Qb6+ {[%clk 0:02:31.9]} 22.
Kf1 {[%clk 0:03:25.2]} 22... Bxf3 {[%clk 0:02:29.4]} 23. gxf3 {[%clk 0:03:23.6]}
23... Rad8 {[%clk 0:02:26]} 24. Ng5 {[%clk 0:03:12.8]} 24... Qe3 {[%clk
0:02:21]} 25. Bxh7+ {[%clk 0:03:00.2]} 25... Kh8 {[%clk 0:02:14.8]} 26. Rxd8
{[%clk 0:02:57.2]} 26... Rxd8 {[%clk 0:02:03.4]} 27. Nxf7+ {[%clk 0:02:55.7]}
27... Kxh7 {[%clk 0:02:02.2]} 28. Nxd8 {[%clk 0:02:55.6]} 28... Qxf3+ {[%clk
0:02:00.6]} 29. Ke1 {[%clk 0:02:49.3]} 29... Qxc3+ {[%clk 0:01:58.7]} 0-1

[Event "Live Chess"]
[Site "Chess.com"]
[Date "2024.06.02"]
[Round "-"]
[White "dmitro74"]
[Black "TigerTank70"]
[Result "0-1"]
[WhiteElo "1648"]
[BlackElo "2238"]
[TimeControl "300"]
[EndTime "16:00:35 PDT"]
[Termination "TigerTank70 won on time"]

1. d4 {[%clk 0:04:55.6]} 1... d5 {[%clk 0:04:58.9]} 2. c4 {[%clk 0:04:54.2]}
2... e5 {[%clk 0:04:57.7]} 3. dxe5 {[%clk 0:04:50.8]} 3... d4 {[%clk 0:04:57.6]}
4. Nf3 {[%clk 0:04:49.6]} 4... Nc6 {[%clk 0:04:57.1]} 5. e3 {[%clk 0:04:46.7]}
5... Bb4+ {[%clk 0:04:53.4]} 6. Bd2 {[%clk 0:04:44.6]} 6... dxe3 {[%clk
0:04:52.8]} 7. fxe3 {[%clk 0:04:36.1]} 7... Bg4 {[%clk 0:04:48.6]} 8. Bxb4
{[%clk 0:04:23.1]} 8... Qxd1+ {[%clk 0:04:46.1]} 9. Kxd1 {[%clk 0:04:21.6]} 9...
Nxb4 {[%clk 0:04:45.4]} 10. a3 {[%clk 0:04:13]} 10... O-O-O+ {[%clk 0:04:42.4]}
11. Nd2 {[%clk 0:04:06.7]} 11... Nc6 {[%clk 0:04:31.4]} 12. Kc2 {[%clk
0:04:01.3]} 12... Nge7 {[%clk 0:04:26.9]} 13. Bd3 {[%clk 0:03:54.3]} 13... Ng6
{[%clk 0:04:12.1]} 14. h3 {[%clk 0:03:45.3]} 14... Bxf3 {[%clk 0:04:02.9]} 15.
Nxf3 {[%clk 0:03:43.6]} 15... Ngxe5 {[%clk 0:04:00]} 16. Be2 {[%clk 0:03:25.1]}
16... Rhe8 {[%clk 0:03:55.4]} 17. Rad1 {[%clk 0:03:21.5]} 17... Nxf3 {[%clk
0:03:46.8]} 18. Bxf3 {[%clk 0:03:18.4]} 18... Rxe3 {[%clk 0:03:42.1]} 19. Rxd8+
{[%clk 0:03:07.5]} 19... Nxd8 {[%clk 0:03:38.2]} 20. Rd1 {[%clk 0:03:02.2]}
20... Ne6 {[%clk 0:03:33]} 21. Bg4 {[%clk 0:02:47.1]} 21... c6 {[%clk
0:03:28.7]} 22. Rd2 {[%clk 0:02:31.7]} 22... Kc7 {[%clk 0:03:26.7]} 23. Rf2
{[%clk 0:02:26.3]} 23... f6 {[%clk 0:03:18]} 24. Kd2 {[%clk 0:02:20.7]} 24...
Re5 {[%clk 0:03:11.4]} 25. b4 {[%clk 0:02:11.1]} 25... Ng5 {[%clk 0:03:06.1]}
26. Kd3 {[%clk 0:02:02.2]} 26... b6 {[%clk 0:02:47]} 27. h4 {[%clk 0:01:47.6]}
27... Ne4 {[%clk 0:02:37]} 28. Re2 {[%clk 0:01:42]} 28... Nd6 {[%clk 0:02:07.8]}
29. Rxe5 {[%clk 0:01:17.5]} 29... fxe5 {[%clk 0:02:07.7]} 30. c5 {[%clk
0:01:12.6]} 30... bxc5 {[%clk 0:01:58.9]} 31. bxc5 {[%clk 0:01:11.2]} 31... Nb7
{[%clk 0:01:55.8]} 32. Ke4 {[%clk 0:01:08.4]} 32... Nxc5+ {[%clk 0:01:54.4]} 33.
Kxe5 {[%clk 0:01:07.4]} 33... a5 {[%clk 0:01:49.4]} 34. Bf5 {[%clk 0:01:02.9]}
34... h6 {[%clk 0:01:47.2]} 35. Bc2 {[%clk 0:00:58.5]} 35... Kd7 {[%clk
0:01:40.7]} 36. Bf5+ {[%clk 0:00:53.1]} 36... Ke7 {[%clk 0:01:39.2]} 37. Bc2
{[%clk 0:00:42.1]} 37... Nd7+ {[%clk 0:01:36.6]} 38. Kf5 {[%clk 0:00:37.1]}
38... c5 {[%clk 0:01:23.7]} 39. g4 {[%clk 0:00:33.1]} 39... Nb6 {[%clk
0:01:11.5]} 40. a4 {[%clk 0:00:25.4]} 40... c4 {[%clk 0:01:01.6]} 41. Ke5 {[%clk
0:00:23.9]} 41... Kd7 {[%clk 0:00:56.2]} 42. Be4 {[%clk 0:00:20.5]} 42... Nxa4
{[%clk 0:00:52.8]} 43. Kd4 {[%clk 0:00:19.4]} 43... Nb6 {[%clk 0:00:46.7]} 44.
Kc5 {[%clk 0:00:18.1]} 44... Kc7 {[%clk 0:00:45.5]} 45. g5 {[%clk 0:00:14.9]}
45... hxg5 {[%clk 0:00:42.6]} 46. hxg5 {[%clk 0:00:13.8]} 46... a4 {[%clk
0:00:29.4]} 47. Kb5 {[%clk 0:00:10.9]} 47... a3 {[%clk 0:00:27]} 48. Bb1 {[%clk
0:00:08.5]} 48... c3 {[%clk 0:00:24]} 49. Kb4 {[%clk 0:00:06.3]} 49... c2 {[%clk
0:00:19.5]} 50. Bxc2 {[%clk 0:00:03.2]} 50... a2 {[%clk 0:00:18.9]} 51. Bb3
{[%clk 0:00:02]} 51... a1=Q {[%clk 0:00:17.4]} 52. g6 {[%clk 0:00:01.2]} 52...
Qb1 {[%clk 0:00:15.8]} 0-1

[Event "Live Chess"]
[Site "Chess.com"]
[Date "2024.06.02"]
[Round "-"]
[White "NottheBishopSacrifice"]
[Black "Dhaydon19"]
[Result "1/2-1/2"]
[WhiteElo "2308"]
[BlackElo "2673"]
[TimeControl "300"]
[EndTime "16:00:58 PDT"]
[Termination "Game drawn - insufficient material"]

1. d4 {[%clk 0:04:57]} 1... c6 {[%clk 0:04:59.6]} 2. c4 {[%clk 0:04:52.3]} 2...
d5 {[%clk 0:04:59.3]} 3. cxd5 {[%clk 0:04:51.2]} 3... cxd5 {[%clk 0:04:57.9]} 4.
Bf4 {[%clk 0:04:50.6]} 4... Nf6 {[%clk 0:04:57.6]} 5. e3 {[%clk 0:04:49.5]} 5...
Nc6 {[%clk 0:04:57.3]} 6. Nc3 {[%clk 0:04:48.2]} 6... a6 {[%clk 0:04:56.8]} 7.
Be2 {[%clk 0:04:46.6]} 7... e6 {[%clk 0:04:55.5]} 8. Nf3 {[%clk 0:04:46]} 8...
Bd6 {[%clk 0:04:55.1]} 9. Bxd6 {[%clk 0:04:45.1]} 9... Qxd6 {[%clk 0:04:54.8]}
10. O-O {[%clk 0:04:44.4]} 10... O-O {[%clk 0:04:54.1]} 11. Rc1 {[%clk
0:04:43.3]} 11... Bd7 {[%clk 0:04:53.3]} 12. a3 {[%clk 0:04:37.6]} 12... Rac8
{[%clk 0:04:51.4]} 13. b4 {[%clk 0:04:36]} 13... e5 {[%clk 0:04:45.9]} 14. dxe5
{[%clk 0:04:34]} 14... Nxe5 {[%clk 0:04:44.6]} 15. Nxe5 {[%clk 0:04:28.8]} 15...
Qxe5 {[%clk 0:04:43.7]} 16. Qd4 {[%clk 0:04:28.5]} 16... Qxd4 {[%clk 0:04:39.9]}
17. exd4 {[%clk 0:04:28.4]} 17... Rfe8 {[%clk 0:04:39.1]} 18. Bf3 {[%clk
0:04:26.5]} 18... Be6 {[%clk 0:04:38.1]} 19. Na4 {[%clk 0:04:24]} 19... Rxc1
{[%clk 0:04:23.3]} 20. Rxc1 {[%clk 0:04:22.4]} 20... Rc8 {[%clk 0:04:22.5]} 21.
Rxc8+ {[%clk 0:04:20.5]} 21... Bxc8 {[%clk 0:04:21]} 22. Nb6 {[%clk 0:04:18.1]}
22... Be6 {[%clk 0:04:20.1]} 23. Kf1 {[%clk 0:04:07.8]} 23... Kf8 {[%clk
0:04:19.3]} 24. Ke2 {[%clk 0:04:07.3]} 24... Ke7 {[%clk 0:04:19]} 25. Na4 {[%clk
0:04:04.7]} 25... Kd6 {[%clk 0:04:18.2]} 26. Nc5 {[%clk 0:04:03.4]} 26... Bc8
{[%clk 0:04:16.7]} 27. Nd3 {[%clk 0:04:01.2]} 27... b6 {[%clk 0:04:14.3]} 28.
Ne5 {[%clk 0:03:59.6]} 28... Be6 {[%clk 0:04:13.7]} 29. Kd3 {[%clk 0:03:56.4]}
29... g5 {[%clk 0:04:11.3]} 30. Bd1 {[%clk 0:03:52.4]} 30... Ne4 {[%clk
0:04:06]} 31. Ke3 {[%clk 0:03:44.6]} 31... f6 {[%clk 0:04:01.6]} 32. Nf3 {[%clk
0:03:40]} 32... Nc3 {[%clk 0:03:59.4]} 33. Bb3 {[%clk 0:03:37.5]} 33... Nb5
{[%clk 0:03:51.4]} 34. a4 {[%clk 0:03:34]} 34... Nc3 {[%clk 0:03:49.9]} 35. Kd3
{[%clk 0:03:16.6]} 35... Ne4 {[%clk 0:03:48.3]} 36. Ke3 {[%clk 0:03:16.2]} 36...
Bd7 {[%clk 0:03:40.8]} 37. Nd2 {[%clk 0:03:06.5]} 37... f5 {[%clk 0:03:24]} 38.
g3 {[%clk 0:02:55.4]} 38... f4+ {[%clk 0:03:16.7]} 39. gxf4 {[%clk 0:02:54.2]}
39... gxf4+ {[%clk 0:03:16.4]} 40. Ke2 {[%clk 0:02:52]} 40... Bg4+ {[%clk
0:03:14.6]} 41. Ke1 {[%clk 0:02:47.6]} 41... Ng5 {[%clk 0:03:12.9]} 42. Bc2
{[%clk 0:02:43]} 42... h5 {[%clk 0:03:10.2]} 43. Bd3 {[%clk 0:02:42]} 43... a5
{[%clk 0:03:01.3]} 44. bxa5 {[%clk 0:02:40.5]} 44... bxa5 {[%clk 0:03:00.9]} 45.
Be2 {[%clk 0:02:34.9]} 45... Bd7 {[%clk 0:02:47]} 46. Nb3 {[%clk 0:02:31.2]}
46... f3 {[%clk 0:02:44.3]} 47. Bd3 {[%clk 0:02:25.8]} 47... Bxa4 {[%clk
0:02:40.2]} 48. Nxa5 {[%clk 0:02:25.1]} 48... Kc7 {[%clk 0:02:37.5]} 49. h4
{[%clk 0:02:07.2]} 49... Ne6 {[%clk 0:02:34.9]} 50. Bg6 {[%clk 0:01:54.9]} 50...
Nf4 {[%clk 0:02:33.6]} 51. Bf7 {[%clk 0:01:38.8]} 51... Nd3+ {[%clk 0:02:28.5]}
52. Kd2 {[%clk 0:01:35]} 52... Nxf2 {[%clk 0:02:27.1]} 53. Ke3 {[%clk
0:01:34.6]} 53... Ng4+ {[%clk 0:02:16.3]} 54. Kxf3 {[%clk 0:01:33.4]} 54... Nf6
{[%clk 0:02:10.5]} 55. Kf4 {[%clk 0:01:30.7]} 55... Kb6 {[%clk 0:02:09.6]} 56.
Kf5 {[%clk 0:01:29.1]} 56... Ng4 {[%clk 0:02:03]} 57. Bxd5 {[%clk 0:01:24.7]}
57... Kxa5 {[%clk 0:02:00.5]} 58. Kg5 {[%clk 0:01:22.7]} 58... Kb4 {[%clk
0:01:59.7]} 59. Bf7 {[%clk 0:01:20]} 59... Kc3 {[%clk 0:01:57]} 60. Bxh5 {[%clk
0:01:19.4]} 60... Ne3 {[%clk 0:01:55.2]} 61. Bg6 {[%clk 0:01:17.1]} 61... Kxd4
{[%clk 0:01:54.4]} 62. h5 {[%clk 0:01:16.5]} 62... Bb3 {[%clk 0:01:44]} 63. h6
{[%clk 0:01:11.6]} 63... Bg8 {[%clk 0:01:43.5]} 64. Bf7 {[%clk 0:01:06.5]} 64...
Bh7 {[%clk 0:01:38.1]} 65. Bg6 {[%clk 0:01:02.1]} 65... Bg8 {[%clk 0:01:37.3]}
66. h7 {[%clk 0:01:01.4]} 66... Bxh7 {[%clk 0:01:36.5]} 67. Bxh7 {[%clk
0:01:01.3]} 1/2-1/2